bitfinex-derivatives/quotes_BTCF0:USTF0_20251125
["timestamp","ask_amount","ask_price","bid_price","bid_amount"]
[1764032814969,0.14907,88010.0,88009.0,0.51315]
[1764032817574,0.14907,88010.0,88009.0,0.15235]
[1764032818075,0.14907,88010.0,88009.0,0.15454803]
[1764032820880,0.011366,88012.0,88011.0,0.19876]
[1764032821065,0.011366,88012.0,88011.0,0.20095803]
[1764032821464,0.082866,88012.0,88011.0,0.20095803]
[1764032822375,0.011366,88012.0,88011.0,0.20095803]
[1764032823970,0.50572,88028.0,88014.0,0.0113657]
[1764032824170,0.50572,88028.0,88027.0,0.15511803]
[1764032824371,1.1452,88028.0,88027.0,0.15511803]
[1764032824675,1.1452,88028.0,88027.0,0.00219803]
[1764032824870,1.1452,88028.0,88027.0,0.07576]
[1764032825070,1.1462,88028.0,88027.0,0.07576]
[1764032825379,1.1462,88028.0,88027.0,0.15292]
[1764032825570,0.14492,88021.0,88020.0,0.51372]
[1764032825771,0.14492,88021.0,88020.0,0.51591803]
[1764032826470,0.1562849,88021.0,88020.0,0.51591803]
[1764032828081,0.1572849,88021.0,88020.0,0.51591803]
[1764032828291,0.1572849,88021.0,88011.0,0.04584]
[1764032828292,0.1562859,88013.0,88012.0,0.51372]
[1764032828582,0.5862859,88013.0,88012.0,0.51372]
[1764032828772,0.14492,88007.0,87999.0,0.3608]
[1764032829081,0.1562876,88000.0,87999.0,0.3608]
[1764032829276,0.1562881,87996.0,87990.0,0.04584]
[1764032829470,0.1562887,87991.0,87990.0,0.07576]
[1764032829779,0.14492,87989.0,87988.0,0.3608]
[1764032830074,0.14492,87989.0,87980.0,0.3608]
[1764032830075,0.14492,87984.0,87980.0,0.3608]
[1764032830286,0.14492,87977.0,87976.0,0.1216]
[1764032830466,0.60500105,87977.0,87976.0,0.1216]
[1764032831078,0.15637155,87977.0,87976.0,0.1216]
[1764032831380,8.105e-05,87977.0,87976.0,0.20095803]
[1764032832076,8.105e-05,87977.0,87976.0,0.52095803]
[1764032832272,8.105e-05,87977.0,87976.0,0.20095803]
[1764032833477,0.14098105,87977.0,87976.0,0.20095803]
[1764032834381,0.07015105,87977.0,87976.0,0.20095803]
[1764032834974,0.14098105,87977.0,87976.0,0.20095803]
[1764032835474,0.14098105,87977.0,87976.0,0.19266]
[1764032835878,0.02008105,87977.0,87976.0,0.19485803]
[1764032836072,0.0113707,87976.0,87969.0,0.40664]
[1764032836275,0.1409,87970.0,87969.0,0.55712]
[1764032836472,0.1522714,87970.0,87969.0,0.55712]
[1764032836672,0.5922714,87970.0,87969.0,0.55712]
[1764032837284,0.1522714,87970.0,87969.0,0.55712]
[1764032837485,0.6022714,87970.0,87969.0,0.55712]
[1764032837976,0.1522714,87970.0,87969.0,0.55712]
[1764032838175,0.6122714,87970.0,87969.0,0.55712]
[1764032838776,0.6122714,87970.0,87969.0,0.43438]
[1764032839083,0.6122714,87970.0,87969.0,0.3608]
[1764032839285,0.1522714,87970.0,87969.0,0.43438]
[1764032839875,0.5722714,87970.0,87969.0,0.51128]
[1764032840384,0.0113714,87970.0,87969.0,0.51347803]
[1764032840577,0.1909314,87970.0,87969.0,0.51347803]
[1764032840783,0.0113713,87971.0,87969.0,0.36299803]
[1764032841083,8.105e-05,87977.0,87976.0,0.19048]
[1764032841286,8.105e-05,87977.0,87976.0,0.19267803]
[1764032844190,0.07015105,87977.0,87976.0,0.19267803]
[1764032844689,8.105e-05,87977.0,87976.0,0.19267803]
[1764032845486,0.14098105,87977.0,87976.0,0.19267803]
[1764032846383,0.07015105,87977.0,87976.0,0.19267803]
[1764032846578,8.105e-05,87977.0,87976.0,0.19267803]
[1764032847979,0.1522714,87970.0,87969.0,0.51128]
[1764032848386,0.1522714,87970.0,87969.0,0.51347803]
[1764032848587,0.0814414,87970.0,87969.0,0.51347803]
[1764032849380,0.1522714,87970.0,87969.0,0.51347803]
[1764032851592,0.6022714,87970.0,87969.0,0.51347803]
[1764032854593,0.6022714,87970.0,87969.0,0.51128]
[1764032854894,0.0113714,87970.0,87969.0,0.51347803]
[1764032855285,8.105e-05,87977.0,87976.0,0.19048]
[1764032855488,0.0113697,87984.0,87983.0,0.19048]
[1764032855688,0.0113697,87984.0,87983.0,0.55347803]
[1764032855997,0.1564297,87984.0,87983.0,0.19267803]
[1764032856191,0.1564297,87984.0,87983.0,0.15267803]
[1764032856996,0.3374297,87984.0,87983.0,0.15267803]
[1764032857196,0.1574297,87984.0,87983.0,0.15267803]
[1764032857394,0.3374297,87984.0,87983.0,0.15267803]
[1764032857589,0.5374297,87984.0,87983.0,0.15267803]
[1764032858788,0.1774297,87984.0,87983.0,0.15267803]
[1764032858997,0.0123697,87984.0,87983.0,0.15267803]
[1764032860085,0.01276,87991.0,87990.0,0.15048]
[1764032860289,0.0241287,87991.0,87990.0,0.15267803]
[1764032860894,0.01276,87991.0,87990.0,0.15267803]
[1764032861496,0.6861567,88007.0,88006.0,0.13916]
[1764032861694,0.3253567,88007.0,88006.0,0.14135803]
[1764032862599,0.0113667,88007.0,88006.0,0.14135803]
[1764032862801,0.0123667,88007.0,88006.0,0.14135803]
[1764032863296,0.0123667,88007.0,88006.0,0.00219803]
[1764032863297,0.1457567,88007.0,88006.0,0.00219803]
[1764032863490,0.1467567,88007.0,88006.0,0.14135803]
[1764032863690,0.1457573,88002.0,88001.0,0.3608]
[1764032864495,0.3357573,88002.0,88001.0,0.3608]
[1764032865496,0.1457573,88002.0,88001.0,0.3608]
[1764032865699,0.1457577,87999.0,87998.0,0.13933049]
[1764032865902,0.3357577,87999.0,87998.0,0.13933049]
[1764032866100,0.1457577,87999.0,87998.0,0.00017049]
[1764032866398,0.5757577,87999.0,87998.0,0.00017049]
[1764032867197,0.5767577,87999.0,87998.0,0.00017049]
[1764032867499,0.6020864,87999.0,87998.0,0.00017049]
[1764032868487,0.6020864,87999.0,87998.0,0.13933049]
[1764032868692,0.1820864,87999.0,87998.0,0.13933049]
[1764032871599,0.6320864,87999.0,87998.0,0.13933049]
[1764032871796,0.8116464,87999.0,87998.0,0.13933049]
[1764032876408,0.8116464,87999.0,87998.0,0.00017049]
[1764032877505,0.8116464,87999.0,87998.0,0.13416049]
[1764032880108,0.8116464,87999.0,87998.0,0.00017049]
[1764032880319,0.8116464,87999.0,87990.0,0.0258]
[1764032880320,0.1866689,87990.0,87989.0,0.3608]
[1764032880607,0.13679,87982.0,87981.0,0.49479]
[1764032880804,0.13679,87973.0,87972.0,0.3608]
[1764032881007,0.3277211,87973.0,87972.0,0.36299803]
[1764032881309,0.3277211,87973.0,87972.0,0.49698803]
[1764032881808,0.5177211,87973.0,87972.0,0.49698803]
[1764032882104,0.80305398,87973.0,87972.0,0.3608]
[1764032883114,0.7777211,87973.0,87972.0,0.3608]
[1764032883705,0.86822154,87973.0,87972.0,0.3608]
[1764032883899,0.0796521,87965.0,87964.0,0.06580049]
[1764032884105,0.1481621,87965.0,87964.0,0.13416049]
[1764032884407,0.3381621,87965.0,87964.0,0.13416049]
[1764032885009,0.1481621,87965.0,87964.0,0.13416049]
[1764032885204,0.3081621,87965.0,87964.0,0.13516049]
[1764032885409,0.1481621,87965.0,87964.0,0.13735852]
[1764032885604,0.0113717,87969.0,87968.0,0.17206]
[1764032885797,0.0113717,87969.0,87968.0,0.17425803]
[1764032887511,0.17956,87970.0,87969.0,0.13399]
[1764032887712,0.17956,87970.0,87969.0,0.13618803]
[1764032888206,0.24784,87970.0,87969.0,0.13618803]
[1764032889511,0.17956,87970.0,87969.0,0.13618803]
[1764032889707,0.06828,87975.0,87974.0,0.13399]
[1764032890014,0.14833049,87981.0,87980.0,0.13399]
[1764032890207,0.74789049,87981.0,87980.0,0.13618803]
[1764032890412,0.32789049,87981.0,87980.0,0.13618803]
[1764032892209,0.48789049,87981.0,87980.0,0.13618803]
[1764032892405,0.1349714,87970.0,87969.0,0.48803]
[1764032892612,0.1349721,87965.0,87964.0,0.12740049]
[1764032892910,0.17956,87967.0,87964.0,0.12959852]
[1764032893218,0.1349711,87973.0,87972.0,0.12723]
[1764032893419,0.3145311,87973.0,87972.0,0.12942803]
[1764032893618,0.0113711,87973.0,87972.0,0.12942803]
[1764032894114,0.12377049,87981.0,87980.0,0.12723]
[1764032894308,0.13377049,87981.0,87980.0,0.12942803]
[1764032894509,0.00017049,87981.0,87980.0,0.12942803]
[1764032896014,0.12377049,87981.0,87980.0,0.12942803]
[1764032896230,0.00017049,87981.0,87980.0,0.12942803]
[1764032897022,0.06123049,87981.0,87980.0,0.12942803]
[1764032897325,0.12377049,87981.0,87980.0,0.12942803]
[1764032897626,0.1349713,87971.0,87970.0,0.48803]
[1764032897929,0.1349713,87971.0,87970.0,0.49022803]
[1764032898424,0.0113721,87965.0,87950.0,0.3608]
[1764032898630,0.4844,87976.0,87975.0,0.12723]
[1764032898826,0.26575836,87976.0,87975.0,0.12942803]
[1764032899024,0.08619836,87976.0,87975.0,0.12942803]
[1764032899330,0.06106,87976.0,87975.0,0.12942803]
[1764032899726,0.57680138,87976.0,87975.0,0.00219803]
[1764032900622,0.57680138,87976.0,87964.0,0.00017049]
[1764032900623,0.1349721,87965.0,87964.0,0.06339049]
[1764032900826,0.5749721,87965.0,87964.0,0.00017049]
[1764032901829,0.5749721,87965.0,87964.0,0.00117049]
[1764032903518,0.5749721,87965.0,87964.0,0.06439049]
[1764032903917,0.5749721,87965.0,87964.0,0.00117049]
[1764032905234,0.0724321,87965.0,87964.0,0.13059852]
[1764032905420,0.0113717,87969.0,87968.0,0.03847]
[1764032905625,0.2520317,87969.0,87968.0,0.16789803]
[1764032905826,0.3608,87976.0,87975.0,0.12723]
[1764032906028,0.1796,87983.0,87980.0,0.12723]
[1764032906223,0.02516097,87982.0,87980.0,0.49022803]
[1764032906428,0.1796,87988.0,87980.0,0.49022803]
[1764032906738,0.011369,87989.0,87980.0,0.94022803]
[1764032906925,0.0113694,87987.0,87980.0,0.49022803]
[1764032907434,0.1796,87991.0,87980.0,0.89022803]
[1764032907738,0.12377049,87981.0,87980.0,0.49022803]
[1764032908427,0.00017049,87981.0,87980.0,0.49022803]
[1764032908734,0.06123049,87981.0,87980.0,0.49022803]
[1764032909134,0.09027368,87999.0,87998.0,0.1385978]
[1764032909430,0.15133368,87999.0,87998.0,0.12942803]
[1764032909622,0.21387368,87999.0,87998.0,0.12942803]
[1764032909825,0.1236,87999.0,87998.0,0.12942803]
[1764032910025,0.1349662,88011.0,88010.0,0.06401]
[1764032910335,0.1349662,88011.0,88010.0,0.12942803]
[1764032910336,0.1436,88011.0,88010.0,0.12942803]
[1764032910831,0.56056726,88016.0,88015.0,0.12723]
[1764032911135,0.49950726,88016.0,88015.0,0.14079363]
[1764032911629,0.49950726,88016.0,88015.0,0.50159363]
[1764032912034,0.00017049,88019.0,88018.0,0.1385952]
[1764032912223,0.01184078,88046.0,88018.0,0.1385952]
[1764032912224,0.134962,88043.0,88042.0,0.12723]
[1764032912430,0.134962,88043.0,88042.0,0.12942803]
[1764032913031,0.00028394,88046.0,88045.0,0.12723]
[1764032913232,0.00028394,88046.0,88045.0,0.12942803]
[1764032913539,0.12388394,88046.0,88045.0,0.12942803]
[1764032913737,0.12388394,88046.0,88045.0,0.00219803]
[1764032914742,0.12388394,88046.0,88045.0,0.12942803]
[1764032914935,0.12388394,88046.0,88045.0,0.00219803]
[1764032915135,0.12488394,88046.0,88045.0,0.00219803]
[1764032916934,0.06234394,88046.0,88045.0,0.12942803]
[1764032917130,0.00128394,88046.0,88045.0,0.54942803]
[1764032917532,0.00017037,88054.0,88053.0,0.12723]
[1764032917837,0.1730181,88074.0,88073.0,0.06322]
[1764032918032,0.3430181,88074.0,88073.0,0.00219803]
[1764032919440,0.6330181,88074.0,88073.0,0.00219803]
[1764032919740,0.6340181,88074.0,88073.0,0.00219803]
[1764032920237,0.62266,88074.0,88073.0,0.12942803]
[1764032920435,0.001,88074.0,88073.0,0.12942803]
[1764032920740,0.002,88074.0,88073.0,0.16942803]
[1764032920940,0.002,88074.0,88073.0,0.12942803]
[1764032921153,0.002,88074.0,88073.0,0.95022803]
[1764032921327,0.002,88074.0,88073.0,0.91022803]
[1764032921835,0.002,88074.0,88073.0,0.49022803]
[1764032922036,0.002,88074.0,88073.0,0.94022803]
[1764032922439,0.00017037,88082.0,88081.0,0.11817]
[1764032922641,0.00017037,88082.0,88081.0,0.90116803]
[1764032922941,0.00017037,88082.0,88081.0,0.48116803]
[1764032923838,0.00117037,88082.0,88081.0,0.48116803]
[1764032924441,0.12971037,88082.0,88081.0,0.48116803]
[1764032926240,0.12971037,88082.0,88081.0,0.12036803]
[1764032926946,0.14106737,88082.0,88081.0,0.12036803]
[1764032927445,0.12754,88066.0,88065.0,0.11834037]
[1764032927635,0.06274,88066.0,88065.0,0.1205384]
[1764032928045,0.09717,88070.0,88069.0,0.11817]
[1764032928245,0.09717,88070.0,88069.0,0.12036803]
[1764032929349,0.0113572,88080.0,88079.0,0.11817]
[1764032929543,0.0113572,88080.0,88079.0,0.12036803]
[1764032929944,0.1733272,88080.0,88079.0,0.12036803]
[1764032930542,0.00017037,88082.0,88079.0,0.12036803]
[1764032930740,0.00017037,88082.0,88081.0,0.11817]
[1764032930947,0.00017037,88082.0,88081.0,0.12036803]
[1764032932236,0.06291037,88082.0,88081.0,0.12036803]
[1764032932434,0.06391037,88082.0,88081.0,0.12036803]
[1764032933639,0.12871037,88082.0,88081.0,0.12036803]
[1764032933947,0.54871037,88082.0,88081.0,0.00219803]
[1764032934144,0.40871037,88082.0,88081.0,0.00219803]
[1764032934350,0.12754,88075.0,88074.0,0.3608]
[1764032934751,0.1388979,88075.0,88074.0,0.36299803]
[1764032935440,0.1398979,88075.0,88074.0,0.42094803]
[1764032935836,0.1398979,88075.0,88074.0,0.36299803]
[1764032936751,0.3298979,88075.0,88074.0,0.36299803]
[1764032937450,0.5998979,88075.0,88074.0,0.36299803]
[1764032937637,0.6248371,88075.0,88074.0,0.36299803]
[1764032937838,0.1534792,88075.0,88074.0,0.48107803]
[1764032938144,0.001,88075.0,88074.0,0.48107803]
[1764032939147,0.0123579,88075.0,88074.0,0.48107803]
[1764032939342,0.05951,88075.0,88074.0,0.48107803]
[1764032939647,0.001,88075.0,88074.0,0.49854803]
[1764032940055,0.00017037,88082.0,88081.0,0.1294371]
[1764032940349,0.3608,88096.0,88095.0,0.11808]
[1764032940647,0.38581042,88096.0,88095.0,0.33027803]
[1764032940847,0.38581042,88096.0,88095.0,0.12027803]
[1764032942040,0.38581042,88096.0,88095.0,0.57027803]
[1764032942041,0.02501042,88096.0,88095.0,0.57027803]
[1764032942245,0.00017027,88104.0,88103.0,0.11808]
[1764032942539,0.02520073,88104.0,88103.0,0.48107803]
[1764032942739,0.13886073,88104.0,88103.0,0.00219803]
[1764032943347,0.02520073,88104.0,88103.0,0.89107803]
[1764032943540,0.02520073,88104.0,88103.0,0.48107803]
[1764032943746,0.02520073,88104.0,88103.0,0.90107803]
[1764032944055,0.02520073,88104.0,88103.0,0.48107803]
[1764032944242,0.02620073,88104.0,88103.0,0.48107803]
[1764032944646,0.13986073,88104.0,88103.0,0.48107803]
[1764032946557,0.02620073,88104.0,88103.0,0.92107803]
[1764032947154,0.0113527,88116.0,88115.0,0.10896]
[1764032947355,0.05879369,88126.0,88125.0,0.10896]
[1764032947551,0.11394369,88126.0,88125.0,0.11115803]
[1764032947754,0.12529499,88126.0,88125.0,0.11115803]
[1764032949750,0.00028369,88126.0,88125.0,0.11115803]
[1764032950343,0.00128369,88126.0,88125.0,0.11115803]
[1764032950959,0.00128369,88126.0,88125.0,0.57115803]
[1764032951257,0.08904,88150.0,88149.0,0.0932]
[1764032951455,0.011348,88152.0,88149.0,0.00219803]
[1764032951643,0.123428,88152.0,88151.0,0.0932]
[1764032951844,0.123428,88152.0,88151.0,0.00219803]
[1764032952047,0.123428,88152.0,88151.0,0.04879803]
[1764032952452,0.11208,88152.0,88151.0,0.09539803]
[1764032952653,0.03398,88160.0,88159.0,0.0932]
[1764032952844,0.14606,88160.0,88159.0,0.09539803]
[1764032953758,0.14606,88160.0,88159.0,0.00219803]
[1764032955255,0.14606,88160.0,88159.0,0.04879803]
[1764032955559,0.14606,88160.0,88159.0,0.00219803]
[1764032955760,0.39606,88160.0,88159.0,0.00219803]
[1764032956059,0.14606,88160.0,88159.0,0.04879803]
[1764032956263,0.05534356,88166.0,88165.0,0.0932]
[1764032956559,0.00028356,88166.0,88165.0,0.09539803]
[1764032956759,0.05534356,88166.0,88165.0,0.09539803]
[1764032956959,0.11236356,88166.0,88165.0,0.09539803]
[1764032958657,0.11236356,88166.0,88165.0,0.51539803]
[1764032958658,0.00028356,88166.0,88165.0,0.51539803]
[1764032959358,0.11236356,88166.0,88165.0,0.09539803]
[1764032960559,0.11236356,88166.0,88165.0,0.86619803]
[1764032960759,0.11236356,88166.0,88165.0,0.45619803]
[1764032961169,0.00028356,88166.0,88165.0,0.91619803]
[1764032961358,0.00028356,88166.0,88165.0,0.45619803]
[1764032961550,0.01162976,88166.0,88165.0,0.45619803]
[1764032961850,0.12370976,88166.0,88165.0,0.45619803]
[1764032962054,0.12370976,88166.0,88165.0,0.00219803]
[1764032962257,0.38370976,88166.0,88165.0,0.00219803]
[1764032963055,0.12370976,88166.0,88165.0,0.00219803]
[1764032963567,0.14424,88146.0,88145.0,0.454]
[1764032963758,0.14424,88146.0,88145.0,0.45619803]
[1764032964161,0.14424,88146.0,88145.0,0.46754693]
[1764032964758,0.0664083,88150.0,88149.0,0.0932]
[1764032964958,0.0664083,88150.0,88149.0,0.09539803]
[1764032965354,0.1234283,88150.0,88149.0,0.09539803]
[1764032966358,0.11208,88150.0,88149.0,0.09539803]
[1764032966559,0.08722,88155.0,88154.0,0.0932]
[1764032966759,0.08722,88155.0,88154.0,0.45619803]
[1764032966968,0.1234268,88161.0,88160.0,0.0932]
[1764032967161,0.1234268,88161.0,88160.0,0.09539803]
[1764032968856,0.1234268,88161.0,88160.0,0.00219803]
[1764032969261,0.3381681,88161.0,88160.0,0.00219803]
[1764032969463,0.1481681,88161.0,88160.0,0.00219803]
[1764032970262,0.3181681,88161.0,88160.0,0.00219803]
[1764032970562,0.3381681,88161.0,88160.0,0.00219803]
[1764032970961,0.1481681,88161.0,88160.0,0.00219803]
[1764032972358,0.3981681,88161.0,88160.0,0.00219803]
[1764032972559,0.1555887,88146.0,88145.0,0.3608]
[1764032972760,0.1555887,88146.0,88145.0,0.36299803]
[1764032973461,0.14424,88146.0,88145.0,0.45619803]
[1764032974168,0.13061431,88146.0,88145.0,0.45619803]
[1764032974563,0.03216,88155.0,88145.0,0.45619803]
[1764032974564,0.05506,88152.0,88151.0,0.11244]
[1764032974759,0.05506,88152.0,88151.0,0.11463803]
[1764032975558,0.11208,88152.0,88151.0,0.11463803]
[1764032977466,0.11208,88152.0,88151.0,0.00219803]
[1764032978075,0.4269535,88152.0,88151.0,0.00219803]
[1764032978365,0.11208,88147.0,88146.0,0.3608]
[1764032978674,0.123429,88144.0,88132.0,0.3608]
[1764032978863,0.1234304,88133.0,88132.0,0.3608]
[1764032979064,0.14832981,88133.0,88132.0,0.3608]
[1764032979273,0.14832981,88133.0,88132.0,0.36299803]
[1764032979871,0.14832981,88133.0,88132.0,0.3608]
[1764032980066,0.41832981,88133.0,88132.0,0.3608]
[1764032980765,0.41832981,88133.0,88132.0,0.36299803]
[1764032980766,0.14832981,88133.0,88132.0,0.36299803]
[1764032980964,0.43832981,88133.0,88132.0,0.45383803]
[1764032981168,0.14832981,88133.0,88132.0,0.45383803]
[1764032982361,0.13697941,88133.0,88132.0,0.45383803]
[1764032983076,0.02489941,88133.0,88132.0,0.45383803]
[1764032983276,0.08173,88137.0,88136.0,0.09084]
[1764032983569,0.13569,88137.0,88136.0,0.09303803]
[1764032983971,0.12206241,88137.0,88136.0,0.09303803]
[1764032984162,0.13341231,88137.0,88136.0,0.09303803]
[1764032984367,0.15824417,88137.0,88136.0,0.00219803]
[1764032984575,0.13341231,88137.0,88136.0,0.00219803]
[1764032984881,0.15824146,88137.0,88136.0,0.00219803]
[1764032985174,0.41824146,88137.0,88136.0,0.00219803]
[1764032985366,0.39824146,88137.0,88136.0,0.00219803]
[1764032985567,0.1148804,88133.0,88132.0,0.3608]
[1764032985767,0.14190758,88133.0,88132.0,0.3608]
[1764032986262,0.33190758,88133.0,88132.0,0.3608]
[1764032986462,0.53190758,88133.0,88132.0,0.3608]
[1764032987368,0.14190758,88133.0,88132.0,0.3608]
[1764032987575,0.41190758,88133.0,88132.0,0.3608]
[1764032989483,0.41190758,88133.0,88124.0,0.00017017]
[1764032989484,0.1148814,88125.0,88124.0,0.00017017]
[1764032989779,0.54707943,88125.0,88124.0,0.00090284]
[1764032989971,0.11707943,88125.0,88124.0,0.00090284]
[1764032990173,0.41189467,88125.0,88124.0,0.00017017]
[1764032990372,0.38189241,88125.0,88124.0,0.00017017]
[1764032990576,0.38189241,88125.0,88116.0,0.00011241]
[1764032990577,0.1148825,88117.0,88116.0,0.00011241]
[1764032990779,0.95269693,88117.0,88116.0,0.00011241]
[1764032992874,0.50269693,88117.0,88116.0,0.00011241]
[1764032993079,0.50269693,88117.0,88116.0,0.10313508]
[1764032993080,0.65720053,88117.0,88116.0,0.10313508]
[1764032993383,0.89720053,88117.0,88116.0,0.00111241]
[1764032994081,0.88356824,88117.0,88116.0,0.00111241]
[1764032994383,0.29412074,88117.0,88116.0,0.10313508]
[1764032994784,0.11480074,88117.0,88116.0,0.10313508]
[1764032995980,0.11480074,88117.0,88116.0,0.46393508]
[1764033000689,0.10344824,88117.0,88116.0,0.46393508]
[1764033001189,0.00219803,88117.0,88116.0,0.46393508]
[1764033002288,0.0578909,88130.0,88129.0,0.09529]
[1764033002484,0.0578909,88130.0,88129.0,0.45682267]
[1764033002485,0.00219803,88130.0,88129.0,0.45682267]
[1764033002689,0.10674883,88130.0,88129.0,0.36153267]
[1764033002990,0.1045525,88117.0,88116.0,0.36191241]
[1764033003176,0.10675053,88117.0,88116.0,0.36264508]
[1764033003375,0.09539803,88117.0,88116.0,0.45793508]
[1764033003587,0.09539803,88117.0,88116.0,0.45693508]
[1764033003785,0.09539803,88117.0,88116.0,0.36164508]
[1764033004194,0.52539803,88117.0,88116.0,0.36164508]
[1764033004380,0.52539803,88117.0,88116.0,0.36091241]
[1764033004580,0.52539803,88117.0,88116.0,0.00011241]
[1764033005075,0.0932,88109.0,88100.0,0.3608]
[1764033005378,0.0932,88087.0,88086.0,0.09557382]
[1764033005580,0.09439803,88087.0,88086.0,0.09630649]
[1764033005981,0.04773803,88087.0,88086.0,0.09630649]
[1764033006279,0.00231044,88087.0,88086.0,0.09630649]
[1764033007291,0.04885044,88087.0,88086.0,0.54630649]
[1764033007483,0.09551044,88087.0,88086.0,0.00101649]
[1764033008692,0.09551044,88087.0,88069.0,0.3608]
[1764033008693,0.1045574,88079.0,88069.0,0.3608]
[1764033008996,0.10675543,88079.0,88078.0,0.04815027]
[1764033009380,0.10675543,88079.0,88078.0,0.04888294]
[1764033009587,0.10675543,88079.0,88078.0,0.09619294]
[1764033009588,0.09539803,88079.0,88078.0,0.09619294]
[1764033009786,0.04873803,88079.0,88078.0,0.87799294]
[1764033010096,0.00219803,88079.0,88078.0,0.45799294]
[1764033011186,0.00219803,88079.0,88078.0,0.88799294]
[1764033011585,0.00011241,88087.0,88078.0,0.77270294]
[1764033011791,0.0113566,88085.0,88084.0,0.09812]
[1764033012094,0.01355463,88085.0,88084.0,0.09885267]
[1764033012296,0.00219803,88085.0,88084.0,0.09885267]
[1764033012595,0.00011241,88087.0,88086.0,0.09812]
[1764033012796,0.01366674,88087.0,88086.0,0.09885267]
[1764033012992,0.10778674,88087.0,88086.0,0.09885267]
[1764033013189,0.10778674,88087.0,88086.0,0.04937267]
[1764033013389,0.10778674,88087.0,88086.0,0.00073267]
[1764033013890,0.10778674,88087.0,88086.0,0.04937267]
[1764033014099,0.01366674,88087.0,88086.0,0.09885267]
[1764033014692,0.06049674,88087.0,88086.0,0.09885267]
[1764033015298,0.00231044,88087.0,88086.0,0.45965267]
[1764033015989,0.00231044,88087.0,88086.0,0.87965267]
[1764033016187,0.00231044,88087.0,88086.0,0.83965267]
[1764033016388,0.00231044,88087.0,88086.0,0.45965267]
[1764033016686,0.00011241,88087.0,88086.0,0.85965267]
[1764033025599,0.00011241,88087.0,88086.0,0.45965267]
[1764033026208,0.00011241,88087.0,88086.0,0.87965267]
[1764033026397,0.00011241,88087.0,88086.0,0.45965267]
[1764033026597,0.00011241,88087.0,88086.0,0.91965267]
[1764033027006,0.00011241,88087.0,88086.0,0.84965267]
[1764033027209,0.04914044,88087.0,88086.0,0.45965267]
[1764033029203,0.09643044,88087.0,88086.0,0.45965267]
[1764033029401,0.09643044,88087.0,88086.0,0.36153267]
[1764033030411,0.09643044,88087.0,88086.0,0.45965267]
[1764033033105,0.1213383,88087.0,88086.0,0.45965267]
[1764033036415,0.1213383,88087.0,88086.0,0.89965267]
[1764033036618,0.0740483,88087.0,88086.0,0.45965267]
[1764033037214,0.1213383,88087.0,88086.0,0.45965267]
[1764033037410,0.12136843,88087.0,88086.0,0.45965267]
[1764033038415,0.09643044,88087.0,88086.0,0.45965267]
[1764033039426,0.12137522,88087.0,88086.0,0.45965267]
[1764033040712,0.02725522,88087.0,88086.0,0.83965267]
[1764033041922,0.00011241,88087.0,88086.0,0.83965267]
[1764033042114,0.00011241,88087.0,88086.0,0.87965267]
[1764033042424,0.01152557,88095.0,88094.0,0.0889554]
[1764033042626,0.03643364,88095.0,88094.0,0.45048807]
[1764033042928,0.01152557,88095.0,88094.0,0.86048807]
[1764033043128,0.00017027,88095.0,88094.0,0.86048807]
[1764033044824,0.00017027,88095.0,88094.0,0.84913267]
[1764033045028,0.04001027,88095.0,88094.0,0.83913267]
[1764033045627,0.1106583,88095.0,88094.0,0.82913267]
[1764033046124,0.1106583,88095.0,88094.0,0.43913267]
[1764033048624,0.1106583,88095.0,88094.0,0.36153267]
[1764033049022,0.3906583,88095.0,88094.0,0.36153267]
[1764033049325,0.3906583,88095.0,88094.0,0.43913267]
[1764033049326,0.1106583,88095.0,88094.0,0.43913267]
[1764033056128,0.1106583,88095.0,88094.0,0.44913267]
[1764033056337,0.0023683,88095.0,88094.0,0.43913267]
[1764033056536,0.0023683,88095.0,88094.0,0.58913267]
[1764033056735,0.0023683,88095.0,88094.0,0.59913267]
[1764033057031,0.1071583,88095.0,88094.0,0.58913267]
[1764033058033,0.1071583,88095.0,88094.0,0.45048807]
[1764033058731,0.1071583,88095.0,88094.0,0.83048807]
[1764033058933,0.1071583,88095.0,88094.0,0.59048807]
[1764033059328,0.1185136,88095.0,88094.0,0.61048807]
[1764033059729,0.0137236,88095.0,88094.0,0.61048807]
[1764033059935,0.0113541,88105.0,88104.0,0.0765341]
[1764033060233,0.0920141,88105.0,88104.0,0.42671267]
[1764033060635,0.04074803,88109.0,88108.0,0.06518]
[1764033060839,0.02391,88116.0,88115.0,0.06518]
[1764033060840,0.10457,88116.0,88115.0,0.06518]
[1764033061029,0.14302272,88116.0,88115.0,0.00073267]
[1764033061226,0.14302272,88116.0,88107.0,0.00017027]
[1764033061227,0.0920136,88108.0,88107.0,0.00017027]
[1764033061430,0.11911372,88108.0,88107.0,0.00090294]
[1764033061735,0.48911372,88108.0,88107.0,0.00090294]
[1764033062241,0.11911372,88108.0,88107.0,0.00090294]
[1764033062829,0.11911372,88108.0,88107.0,0.06608294]
[1764033063034,0.10776012,88108.0,88107.0,0.06608294]
[1764033065037,0.10776012,88108.0,88107.0,0.17608294]
[1764033066131,0.02490209,88108.0,88107.0,0.17608294]
[1764033066325,0.0499035,88110.0,88109.0,0.06518]
[1764033066528,0.11690911,88110.0,88109.0,0.18591267]
[1764033066742,0.10775364,88110.0,88109.0,0.18591267]
[1764033066936,0.0352626,88116.0,88109.0,0.18591267]
[1764033066937,0.10457,88116.0,88115.0,0.0765327]
[1764033067138,0.1161418,88123.0,88122.0,0.06518]
[1764033067439,0.1432257,88123.0,88122.0,0.06591267]
[1764033067633,0.1432257,88123.0,88122.0,0.11591267]
[1764033068038,0.1432257,88123.0,88122.0,0.06591267]
[1764033068233,0.1318739,88123.0,88122.0,0.06591267]
[1764033068428,0.1318739,88123.0,88122.0,0.49591267]
[1764033068429,0.0270839,88123.0,88122.0,0.49591267]
[1764033068635,0.00028369,88126.0,88123.0,0.0826017]
[1764033068927,0.00028369,88126.0,88123.0,0.81413437]
[1764033069727,3.69e-06,88126.0,88125.0,0.06518]
[1764033069931,0.0113485,88148.0,88147.0,0.06462]
[1764033070137,0.05209653,88148.0,88147.0,0.42615267]
[1764033070944,0.09420653,88148.0,88147.0,0.42615267]
[1764033071239,0.09420653,88148.0,88147.0,0.47615267]
[1764033071441,0.0477576,88155.0,88154.0,0.0516]
[1764033071736,0.00016995,88156.0,88155.0,0.0516]
[1764033071941,0.00016995,88156.0,88155.0,0.79313267]
[1764033072139,0.00016995,88156.0,88155.0,0.41313267]
[1764033072345,0.00016995,88156.0,88155.0,0.86313267]
[1764033072736,0.00016995,88156.0,88155.0,0.41313267]
[1764033072945,0.00016995,88156.0,88155.0,0.85313267]
[1764033073438,0.00116995,88156.0,88155.0,0.85313267]
[1764033075742,0.00116995,88156.0,88155.0,0.80313267]
[1764033076043,0.07743995,88156.0,88155.0,0.43313267]
[1764033076246,0.07963798,88156.0,88155.0,0.38733267]